bitfinex-derivatives/quotes_ETHF0:USTF0_20250316
["timestamp","ask_amount","ask_price","bid_price","bid_amount"]
[1742089339065,6.53729,1926.2,1926.1,0.00779788]
[1742089343871,1.03834,1926.1,1926.0,1.338]
[1742089344075,3.16094,1926.1,1926.0,1.338]
[1742089345270,1.03834,1926.1,1926.0,1.338]
[1742089345670,5.17342788,1926.2,1926.0,3.0996]
[1742089345969,1.03834,1926.1,1926.0,2.0612]
[1742089346669,1.03834,1926.1,1926.0,1.338]
[1742089346860,2.42434,1926.1,1926.0,1.338]
[1742089352069,2.42434,1926.1,1926.0,2.0526]
[1742089353173,5.85134,1926.1,1926.0,2.0526]
[1742089354678,4.46534,1926.1,1926.0,2.0526]
[1742089354870,1.03834,1926.1,1926.0,2.0526]
[1742089355075,1.03834,1926.1,1926.0,2.7534]
[1742089355675,3.32736086,1926.1,1926.0,2.7534]
[1742089356376,4.30025705,1926.1,1926.0,2.7534]
[1742089356970,3.35273619,1926.1,1926.0,2.7534]
[1742089357473,1.03834,1926.1,1926.0,2.7534]
[1742089359080,2.46024,1926.1,1926.0,2.7534]
[1742089359575,1.03834,1926.1,1926.0,2.7534]
[1742089360178,2.45184,1926.1,1926.0,2.7534]
[1742089361179,1.03834,1926.1,1926.0,2.7534]
[1742089362580,2.45184,1926.1,1926.0,2.7534]
[1742089365277,2.45184,1926.1,1926.0,0.34790442]
[1742089367984,5.65964,1926.1,1926.0,0.34790442]
[1742089368186,7.31367104,1926.1,1926.0,0.34790442]
[1742089368580,8.28656723,1926.1,1926.0,0.34790442]
[1742089373394,10.29006723,1926.1,1926.0,0.34790442]
[1742089374693,7.08226723,1926.1,1926.0,0.34790442]
[1742089374893,5.42823619,1926.1,1926.0,0.34790442]
[1742089375090,4.45534,1926.1,1926.0,0.34790442]
[1742089375293,5.90304,1926.1,1926.0,0.34790442]
[1742089375697,9.11084,1926.1,1926.0,0.34790442]
[1742089375995,10.76487104,1926.1,1926.0,0.34790442]
[1742089376688,1.0384,1926.0,1925.9,0.00779788]
[1742089376890,5.54183104,1926.0,1925.9,1.45789788]
[1742089377593,6.51472723,1926.0,1925.9,1.45789788]
[1742089378296,6.51472723,1926.0,1925.9,0.00779788]
[1742089379200,6.51472723,1926.0,1925.9,0.00253478]
[1742089379496,6.51472723,1926.0,1925.9,1.43713478]
[1742089381101,5.11302723,1926.0,1925.9,1.43713478]
[1742089381504,3.66532723,1926.0,1925.9,1.43713478]
[1742089381801,5.42829619,1926.0,1925.9,1.43713478]
[1742089382103,7.08232723,1926.0,1925.9,1.43713478]
[1742089382300,8.42452723,1926.0,1925.9,1.43713478]
[1742089384996,5.00752723,1926.0,1925.9,1.43713478]
[1742089385197,6.77049619,1926.0,1925.9,1.43713478]
[1742089385391,8.42452723,1926.0,1925.9,1.43713478]
[1742089391100,6.77049619,1926.0,1925.9,1.43713478]
[1742089391505,5.7976,1926.0,1925.9,1.43713478]
[1742089392107,8.42452723,1926.0,1925.9,1.43713478]
[1742089393410,5.7976,1926.0,1925.9,1.43713478]
[1742089394202,7.45163104,1926.0,1925.9,1.43713478]
[1742089395312,8.42452723,1926.0,1925.9,1.43713478]
[1742089396710,7.08232723,1926.0,1925.9,1.43713478]
[1742089396906,5.42829619,1926.0,1925.9,1.43713478]
[1742089397811,4.4554,1926.0,1925.9,1.43713478]
[1742089399409,5.8341,1926.0,1925.9,1.43713478]
[1742089399712,1.0384,1926.0,1925.9,1.43713478]
[1742089401315,2.4171,1926.0,1925.9,1.43713478]
[1742089402719,4.07113104,1926.0,1925.9,1.43713478]
[1742089402918,5.04402723,1926.0,1925.9,1.43713478]
[1742089406718,3.38999619,1926.0,1925.9,1.43713478]
[1742089407216,2.01129619,1926.0,1925.9,1.43713478]
[1742089407417,2.62692723,1926.1,1925.9,4.64493478]
[1742089407616,2.62692723,1926.1,1926.0,1.7596]
[1742089407617,0.97289619,1926.1,1926.0,1.7596]
[1742089407809,0.97289619,1926.1,1926.0,3.9261]
[1742089408118,0.00779788,1926.2,1926.1,1.03834]
[1742089408313,0.00779788,1926.2,1926.1,5.69124]
[1742089409507,0.00779788,1926.2,1926.1,8.19124]
[1742089409708,1.03825,1926.3,1926.1,8.1912]
[1742089409917,1.03825,1926.3,1926.2,2.48339]
[1742089410517,1.03825,1926.3,1926.2,1.4451]
[1742089412016,1.0384,1926.0,1925.9,0.00253478]
[1742089412215,4.4554,1926.0,1925.9,0.00253478]
[1742089412816,6.60311018,1926.0,1925.9,0.00253478]
[1742089413123,6.53760637,1926.0,1925.9,0.00253478]
[1742089413309,5.83109619,1926.0,1925.9,0.67783478]
[1742089413512,5.83109619,1926.0,1925.9,2.66333478]
[1742089413513,7.57600637,1926.0,1925.9,2.66333478]
[1742089414712,6.86949619,1926.0,1925.9,2.66333478]
[1742089415324,4.8582,1926.0,1925.9,3.70178478]
[1742089416426,5.33641705,1926.1,1926.0,1.0384]
[1742089416617,5.42723619,1926.1,1926.0,1.434]
[1742089417119,4.45434,1926.1,1926.0,1.434]
[1742089417418,1.67349619,1926.3,1926.0,1.434]
[1742089417419,2.62632982,1926.3,1926.0,1.434]
[1742089417622,3.35768619,1926.3,1926.1,1.03833]
[1742089417924,2.38479,1926.3,1926.2,1.3594]
[1742089418125,2.38479,1926.3,1926.2,2.0354]
[1742089418325,3.35768619,1926.3,1926.2,2.7415]
[1742089421828,3.35768619,1926.3,1926.2,1.3594]
[1742089422019,1.03839,1926.1,1925.9,0.00253478]
[1742089422324,1.0384,1926.0,1925.9,0.00253478]
[1742089423113,3.0419,1926.0,1925.9,0.00253478]
[1742089423523,3.0419,1926.0,1925.9,1.34133478]
[1742089428028,3.98942086,1926.0,1925.9,1.34133478]
[1742089428936,4.96231705,1926.0,1925.9,1.34133478]
[1742089429939,5.6680203,1926.0,1925.9,1.34133478]
[1742089430331,5.6680203,1926.0,1925.9,0.00253478]
[1742089431037,2.59635,1925.8,1925.3,3.2078]
[1742089431336,7.1296203,1926.0,1925.3,1.3164]
[1742089431337,1.03874,1925.4,1925.3,1.3164]
[1742089431532,1.03874,1925.4,1925.2,1.03881]
[1742089431730,1.4225,1925.3,1925.1,5.66714]
[1742089431930,1.03874,1925.4,1925.2,1.03882]
[1742089432234,1.03877,1925.3,1925.2,1.03882]
[1742089432428,1.03877,1925.3,1925.1,5.66715]
[1742089432634,1.03877,1925.3,1925.2,1.03883]
[1742089432835,0.00779788,1925.4,1925.3,1.03877]
[1742089433036,0.00779788,1925.4,1925.3,4.24657]
[1742089434631,1.04651788,1925.4,1925.3,4.24657]
[1742089434937,0.00779788,1925.4,1925.3,4.24657]
[1742089436836,1.04651788,1925.4,1925.3,3.2078]
[1742089438134,2.35691788,1925.4,1925.3,3.2078]
[1742089440438,1.31819788,1925.4,1925.3,4.24657]
[1742089441840,2.35691788,1925.4,1925.3,3.2078]
[1742089442343,2.35691788,1925.4,1925.3,4.24657]
[1742089444249,0.00779788,1925.4,1925.3,4.24657]
[1742089444628,3.91175113,1925.9,1925.4,1.03868]
[1742089444629,2.1565,1925.8,1925.4,1.03868]
[1742089444834,1.03861,1925.6,1925.5,2.38747]
[1742089445943,1.03861,1925.6,1925.5,1.3488]
[1742089446245,1.03861,1925.6,1925.5,2.38747]
[1742089447846,2.39308,1925.7,1925.6,1.03861]
[1742089448046,0.97275018,1925.8,1925.7,1.03856]
[1742089448246,2.01125018,1925.8,1925.7,1.73326]
[1742089448745,1.0385,1925.8,1925.7,2.40276]
[1742089448937,2.39749,1925.9,1925.8,1.0385]
[1742089449136,2.39749,1925.9,1925.8,2.4627]
[1742089449337,4.33067893,1926.0,1925.9,1.03845]
[1742089449646,1.12287893,1926.0,1925.9,2.46265]
[1742089449845,0.08443893,1926.0,1925.9,2.46265]
[1742089453354,1.12283893,1926.0,1925.9,2.46265]
[1742089453536,0.08443893,1926.0,1925.9,5.67045]
[1742089453737,1.12283893,1926.0,1925.9,5.67045]
[1742089454040,2.53093893,1926.0,1925.9,5.67045]
[1742089454439,1.49253893,1926.0,1925.9,5.67045]
[1742089454835,2.53093893,1926.0,1925.9,5.67045]
[1742089456450,1.49253893,1926.0,1925.9,5.67045]
[1742089456852,2.53093893,1926.0,1925.9,5.67045]
[1742089457054,1.49253893,1926.0,1925.9,5.67045]
[1742089457352,2.53093893,1926.0,1925.9,5.67045]
[1742089457654,1.49253893,1926.0,1925.9,5.67045]
[1742089458052,2.53093893,1926.0,1925.9,5.67045]
[1742089458249,1.0385,1925.8,1925.7,5.61054]
[1742089458552,1.49253893,1926.0,1925.8,1.03847]
[1742089458553,1.03845,1925.9,1925.8,1.03847]
[1742089459140,2.47867893,1926.0,1925.8,1.03847]
[1742089459339,1.44023893,1926.0,1925.8,1.03847]
[1742089459550,2.47863893,1926.0,1925.9,2.38115]
[1742089461258,0.08443893,1926.0,1925.9,2.38115]
[1742089461754,1.48673893,1926.0,1925.9,2.38115]
[1742089462853,2.52513893,1926.0,1925.9,2.38115]
[1742089465752,2.52513893,1926.0,1925.9,1.3427]
[1742089466155,2.52513893,1926.0,1925.9,2.38115]
[1742089466855,2.52513893,1926.0,1925.9,1.3427]
[1742089467558,1.0385,1925.8,1925.7,5.61055]
[1742089468764,2.3942,1925.8,1925.7,5.61055]
[1742089468964,1.3557,1925.8,1925.7,5.61055]
[1742089469266,2.70554758,1925.9,1925.8,1.0385]
[1742089469562,1.75758,1925.9,1925.8,2.454]
[1742089469762,0.7191,1925.9,1925.8,2.454]
[1742089470657,3.20905,1925.9,1925.8,2.454]
[1742089471556,3.20905,1925.9,1925.8,1.4155]
[1742089471756,3.20905,1925.9,1925.8,2.454]
[1742089472068,3.20905,1925.9,1925.8,1.4155]
[1742089472458,3.20905,1925.9,1925.8,2.454]
[1742089472659,4.15701758,1925.9,1925.8,2.454]
[1742089472866,3.20905,1925.9,1925.8,2.454]
[1742089476460,2.1706,1925.9,1925.8,2.454]
[1742089477060,3.20905,1925.9,1925.8,2.454]
[1742089477662,3.20905,1925.9,1925.8,1.4155]
[1742089478968,3.20905,1925.9,1925.8,2.454]
[1742089479268,3.20905,1925.9,1925.8,1.4155]
[1742089479469,2.1706,1925.9,1925.8,2.454]
[1742089480169,5.26246893,1926.0,1925.8,1.4155]
[1742089480370,5.92076893,1926.0,1925.9,1.444]
[1742089480673,5.92076893,1926.0,1925.9,2.48245]
[1742089481172,5.92076893,1926.0,1925.9,1.444]
[1742089481373,2.50476893,1926.0,1925.9,2.48245]
[1742089481575,3.93396893,1926.0,1925.9,2.48245]
[1742089481875,3.93396893,1926.0,1925.9,1.444]
[1742089482073,4.90701913,1926.0,1925.9,1.444]
[1742089482475,5.61354479,1926.0,1925.9,1.444]
[1742089485178,5.61354479,1926.0,1925.7,5.61052]
[1742089485179,1.0385,1925.8,1925.7,3.2078]
[1742089485367,1.0385,1925.8,1925.7,4.6276]
[1742089486378,6.01129,1925.8,1925.3,1.03874]
[1742089486681,1.03872,1925.5,1925.4,1.4198]
[1742089487686,1.03867,1925.5,1925.4,1.4198]
[1742089490289,2.46913,1925.6,1925.4,1.4198]
[1742089490489,2.46913,1925.6,1925.5,1.03867]
[1742089490693,2.46913,1925.6,1925.5,1.70217]
[1742089491085,2.46913,1925.6,1925.5,2.41337]
[1742089491286,2.46913,1925.6,1925.5,3.74967]
[1742089491785,1.03863,1925.6,1925.5,3.74967]
[1742089493391,3.7799,1925.7,1925.6,1.03861]
[1742089493580,3.7799,1925.7,1925.6,2.48931]
[1742089494395,3.7799,1925.7,1925.6,1.4507]
[1742089494580,3.7799,1925.7,1925.6,2.48931]
[1742089495494,3.7799,1925.7,1925.6,1.4507]
[1742089496184,3.7799,1925.7,1925.6,2.48931]
[1742089497494,3.7799,1925.7,1925.6,1.4507]
[1742089498097,3.7799,1925.7,1925.6,2.48931]
[1742089498691,3.7799,1925.7,1925.6,1.4507]
[1742089499697,1.03871,1925.5,1925.3,1.03872]
[1742089499888,1.03872,1925.4,1925.3,1.03872]
[1742089500396,1.03877,1925.3,1925.2,5.62179]
[1742089500596,2.0267,1925.3,1925.2,5.62179]
[1742089500787,3.06547,1925.3,1925.2,5.62179]
[1742089501288,1.92335552,1925.6,1925.4,1.03871]
[1742089501594,1.03872,1925.4,1925.3,1.03872]
[1742089501796,1.03872,1925.4,1925.3,1.4344]
[1742089502794,1.75652,1925.4,1925.3,1.4344]
[1742089504085,1.03877,1925.3,1925.2,3.2078]
[1742089504397,3.04507,1925.3,1925.2,4.6407]
[1742089505095,6.25287,1925.3,1925.2,1.4329]
[1742089506600,1.03888,1925.1,1925.0,0.00779788]
[1742089506801,1.03888,1925.1,1925.0,1.44579788]
[1742089507195,3.11688,1925.1,1925.0,1.44579788]
[1742089508999,1.4095,1925.1,1925.0,1.44579788]
[1742089509197,4.45486,1925.2,1925.0,2.48473788]
[1742089509500,5.89536,1925.2,1925.0,2.48473788]
[1742089509691,4.8565,1925.2,1925.1,2.46138]
[1742089509895,1.03883,1925.2,1925.1,2.46138]
[1742089510498,4.4548,1925.3,1925.1,2.46138]
[1742089510692,4.4548,1925.3,1925.2,2.0792]
[1742089511605,1.0388,1925.3,1925.2,3.79953]
[1742089511903,1.0388,1925.3,1925.2,2.7607]
[1742089512104,1.0388,1925.3,1925.2,3.79953]
[1742089512302,1.0388,1925.3,1925.2,2.7607]
[1742089513309,1.0388,1925.3,1925.2,1.4225]
[1742089513998,2.4272,1925.3,1925.2,1.4225]
[1742089519803,2.01292796,1925.4,1925.2,1.4225]
[1742089520002,3.37322796,1925.4,1925.3,0.6621]
[1742089520302,2.01292796,1925.4,1925.3,2.40907]
[1742089520502,1.03875,1925.4,1925.3,3.73017]
[1742089521109,1.03875,1925.4,1925.3,2.6914]
[1742089522313,1.03875,1925.4,1925.3,3.73017]
[1742089523115,1.03875,1925.4,1925.3,2.6914]
[1742089523320,2.48375,1925.4,1925.3,2.6914]
[1742089524402,2.48375,1925.4,1925.3,1.3211]
[1742089526920,1.445,1925.4,1925.3,2.35987]
[1742089527216,2.48372,1925.4,1925.3,1.3211]
[1742089527716,1.445,1925.4,1925.3,1.3211]
[1742089527918,2.48372,1925.4,1925.3,2.35987]
[1742089529020,2.48372,1925.4,1925.3,1.3211]
[1742089529717,2.48372,1925.4,1925.3,2.35987]
[1742089529920,2.48372,1925.4,1925.3,1.3211]
[1742089532022,2.48372,1925.4,1925.3,2.35987]
[1742089533020,1.03872,1925.4,1925.3,2.35987]
[1742089533826,2.40212,1925.4,1925.3,2.35987]
[1742089534729,2.40212,1925.4,1925.3,1.3211]
[1742089534915,1.03872,1925.4,1925.3,1.3211]
[1742089535120,1.03872,1925.4,1925.3,2.35987]
[1742089535521,3.37627796,1925.5,1925.4,1.03872]
[1742089535731,3.37627796,1925.5,1925.4,3.17942]
[1742089535732,2.4021,1925.5,1925.4,3.17942]
[1742089536428,2.4021,1925.5,1925.4,6.38722]
[1742089537434,0.94905966,1925.6,1925.5,1.03867]
[1742089537725,3.80361,1925.7,1925.6,1.03861]
[1742089537921,3.80361,1925.7,1925.6,4.24641]
[1742089538118,3.80361,1925.7,1925.6,5.64331]
[1742089538327,0.9760235,1925.8,1925.6,4.6047]
[1742089538533,3.4253235,1925.8,1925.7,1.3969]
[1742089539227,2.3868235,1925.8,1925.7,2.43546]
[1742089539430,3.4253235,1925.8,1925.7,2.43546]
[1742089539824,2.4493,1925.8,1925.7,2.43546]
[1742089540021,1.4108,1925.8,1925.7,2.43546]
[1742089540730,0.9760235,1925.9,1925.8,1.0385]
[1742089540933,0.9760235,1925.9,1925.8,6.9962]
[1742089541130,2.51773893,1926.0,1925.8,6.9962]
[1742089541131,2.18526929,1926.0,1925.9,1.03845]
[1742089541326,0.08443893,1926.0,1925.9,2.37585]
[1742089542136,1.12283893,1926.0,1925.9,2.37585]
[1742089542434,0.08443893,1926.0,1925.9,2.37585]
[1742089542825,4.36305966,1926.2,1925.9,2.37585]
[1742089542826,1.92508316,1926.2,1926.1,1.03834]
[1742089543029,0.9760235,1926.2,1926.1,4.24614]
[1742089543539,2.40214,1926.3,1926.2,1.03829]
[1742089543845,1.3639,1926.3,1926.2,2.45829]
[1742089544138,2.9633628,1926.5,1926.3,1.03823]
[1742089544347,2.0141935,1926.5,1926.4,4.6278]
[1742089544548,3.3780935,1926.5,1926.4,4.6278]
[1742089544743,2.40207,1926.5,1926.4,4.6278]
[1742089545338,0.9760235,1926.7,1926.4,4.6278]
[1742089545539,2.3973,1926.6,1926.5,1.438]
[1742089546048,1.3592,1926.6,1926.5,2.47613]
[1742089546642,1.449,1926.7,1926.5,3.82073]
[1742089546846,3.84624,1926.7,1926.6,1.438]
[1742089551741,1.03804,1926.7,1926.6,1.438]
[1742089551940,32.43396498,1926.9,1926.6,2.47607]
[1742089551941,1.03798,1926.8,1926.6,2.47607]
[1742089552142,2.43918,1926.8,1926.7,1.339]
[1742089552440,2.43918,1926.8,1926.7,2.37702]
[1742089552643,2.43916,1926.8,1926.7,1.339]
[1742089553334,2.43916,1926.8,1926.7,2.37702]
[1742089553534,1.03796,1926.8,1926.7,2.37702]
[1742089553741,1.03796,1926.8,1926.7,1.339]
[1742089553944,1.03796,1926.8,1926.7,2.37702]
[1742089554446,1.03796,1926.8,1926.7,1.339]
[1742089554837,2.35706,1926.8,1926.7,1.339]
[1742089557045,2.35706,1926.8,1926.7,4.5468]
[1742089558138,1.3191,1926.8,1926.7,5.58482]
[1742089558341,1.03796,1926.9,1926.7,5.58482]
[1742089558547,2.39656,1926.9,1926.8,2.1031]
[1742089558843,2.39656,1926.9,1926.8,2.799]
[1742089563348,2.39656,1926.9,1926.8,3.83696]
[1742089564750,1.03796,1926.9,1926.8,3.83696]
[1742089565549,2.46757,1927.0,1926.8,2.799]
[1742089565750,2.46757,1927.0,1926.9,1.3761]
[1742089568049,2.46757,1927.0,1926.9,2.41401]
[1742089568345,9.21295,1927.4,1927.0,1.03784]
[1742089568547,1.03775,1927.2,1927.1,1.4113]
[1742089569146,2.36875,1927.2,1927.1,1.4113]
[1742089570149,2.00917134,1927.3,1927.1,2.44907]
[1742089570345,3.33047134,1927.3,1927.2,0.6859]
[1742089570550,2.35903,1927.3,1927.2,2.8477]
[1742089570847,1.3213,1927.3,1927.2,3.88545]
[1742089571043,1.3213,1927.3,1927.2,2.8477]
[1742089571244,1.3213,1927.3,1927.2,3.88545]
[1742089571441,4.29732995,1927.4,1927.2,3.88545]
[1742089571642,1.91764995,1927.4,1927.3,2.4889]
[1742089571838,0.97144134,1927.4,1927.3,5.6967]
[1742089572043,2.43015,1927.6,1927.4,1.03763]
[1742089572246,1.3926,1927.6,1927.5,1.03759]
[1742089572549,2.68764471,1927.7,1927.5,1.74819]
[1742089572850,3.35176134,1927.7,1927.6,2.055]
[1742089573241,2.38032,1927.7,1927.6,2.055]
[1742089573744,1.03764,1927.4,1927.3,3.2078]
[1742089573944,1.0377,1927.3,1927.2,4.7964]
[1742089574149,1.0377,1927.3,1927.2,1.3854]
[1742089574353,1.03775,1927.2,1927.1,3.21559788]
[1742089574844,1.03773,1927.3,1927.1,4.25339788]
[1742089575153,1.03773,1927.3,1927.1,5.64456788]
[1742089575354,1.03773,1927.3,1927.2,1.3912]
[1742089577047,1.70503,1927.3,1927.2,1.3912]
[1742089577649,1.03775,1927.2,1927.1,3.21559788]
[1742089578053,2.48515,1927.2,1927.1,3.21559788]
[1742089578654,2.48515,1927.2,1927.1,4.60669788]
[1742089579049,1.4474,1927.2,1927.1,5.64449788]
[1742089579249,2.48515,1927.2,1927.1,4.60669788]
[1742089580756,2.48515,1927.2,1927.1,1.39889788]
[1742089582153,2.48515,1927.2,1927.1,2.43669788]
[1742089582353,2.48515,1927.2,1927.1,1.39889788]
[1742089583958,2.48515,1927.2,1927.1,2.43669788]
[1742089584160,1.92281466,1927.4,1927.1,4.60669788]
[1742089584465,1.03775,1927.2,1927.1,4.25336788]
[1742089584868,2.45754,1927.3,1927.2,1.03775]
[1742089585762,1.03775,1927.2,1927.1,4.25336788]
[1742089585958,2.35175,1927.2,1927.1,0.00779788]
[1742089586158,5.76175,1927.2,1927.1,0.00779788]
[1742089586465,8.96955,1927.2,1927.1,0.00779788]
[1742089586670,10.62341482,1927.2,1927.1,0.00779788]
[1742089586855,11.5973525,1927.2,1927.1,0.00779788]
[1742089588367,15.73788423,1927.2,1926.7,3.2078]
[1742089588559,1.03796,1926.8,1926.7,3.2078]
[1742089588759,4.44795,1926.9,1926.7,4.24582]
[1742089589159,1.3985,1926.8,1926.7,4.24582]
[1742089589366,2.43646,1926.8,1926.7,3.2078]
[1742089589668,3.14276,1926.8,1926.7,3.2078]
[1742089589962,2.1048,1926.8,1926.7,4.24582]
[1742089590169,4.8085,1926.9,1926.8,1.03796]
[1742089590571,5.84643,1926.9,1926.7,4.24579]
[1742089590769,5.84643,1926.9,1926.7,3.2078]
[1742089591067,5.84643,1926.9,1926.7,1.038]
[1742089591370,1.03802,1926.7,1926.6,0.00779788]
[1742089591774,5.60162,1926.7,1926.6,0.00779788]
[1742089592079,1.03823,1926.3,1926.1,2.47253]
[1742089592261,1.03829,1926.2,1926.0,4.24616]
[1742089592462,3.01569,1926.2,1926.0,3.2078]
[1742089592764,3.01569,1926.2,1926.0,4.24619]
[1742089592965,1.3086,1926.1,1926.0,4.24619]
[1742089593176,1.70709,1926.2,1926.0,4.24619]
[1742089594075,3.01569,1926.2,1926.1,1.03834]
[1742089594273,3.01569,1926.2,1926.0,4.24616]
[1742089594475,1.03834,1926.1,1926.0,3.2078]
[1742089595074,1.9774,1926.2,1926.0,3.2078]
[1742089595075,0.6688,1926.2,1926.0,4.2462]
[1742089595375,1.03834,1926.1,1926.0,4.2462]
[1742089595577,3.12994,1926.2,1926.0,4.2462]
[1742089596272,0.687,1926.3,1926.0,3.2078]
[1742089596463,1.03825,1926.3,1926.2,1.03828]
[1742089596859,5.5229,1926.4,1926.2,1.03828]
[1742089597060,1.03823,1926.3,1926.2,1.03828]
[1742089597867,1.03823,1926.3,1926.1,1.0383]
[1742089598075,1.03823,1926.3,1926.2,1.03829]
[1742089599269,5.5229,1926.4,1926.0,3.2078]
[1742089599467,2.1129,1926.4,1926.3,1.03823]
[1742089599874,0.7119,1926.6,1926.4,1.03818]
[1742089600073,3.06601,1926.6,1926.4,1.03818]
[1742089600270,3.06601,1926.6,1926.5,1.72223]
[1742089600573,3.06601,1926.6,1926.5,0.6841]
[1742089600777,3.06601,1926.6,1926.5,1.72223]
[1742089601777,3.06601,1926.6,1926.5,0.6841]
[1742089602274,1.03813,1926.5,1926.3,3.2078]
[1742089602475,1.03818,1926.4,1926.2,1.3751]
[1742089602675,2.42206,1926.5,1926.3,1.03818]
[1742089602863,2.42206,1926.5,1926.4,1.03818]
[1742089603069,1.03823,1926.3,1926.2,1.03829]
[1742089603273,1.75312,1926.4,1926.1,3.2078]
[1742089603777,1.75308,1926.4,1926.2,1.03825]
[1742089603968,1.75308,1926.4,1926.2,2.41955]
[1742089604168,1.75308,1926.4,1926.3,1.3813]
[1742089604877,0.7149,1926.4,1926.3,2.41953]
[1742089605376,1.75308,1926.4,1926.3,1.3813]
[1742089606176,1.03817,1926.5,1926.3,2.41953]
[1742089606371,1.03817,1926.5,1926.4,1.3654]
[1742089607872,5.62191,1926.6,1926.4,2.40358]
[1742089608074,1.03813,1926.5,1926.4,2.40358]
[1742089608275,1.03813,1926.5,1926.4,1.03818]
[1742089608971,2.41411,1926.6,1926.3,3.2078]
[1742089609175,2.41411,1926.6,1926.4,1.3679]
[1742089609379,2.41411,1926.6,1926.5,1.03813]
[1742089611772,1.03813,1926.5,1926.4,2.40604]
[1742089612280,1.376,1926.6,1926.4,1.3679]
[1742089612674,0.6641,1926.6,1926.4,1.3679]
[1742089612867,1.03808,1926.6,1926.5,1.03809]
[1742089614169,2.0649,1926.7,1926.6,1.03807]
[1742089614170,2.39406,1926.7,1926.6,1.03807]
[1742089614366,1.03806,1926.7,1926.6,1.03807]
[1742089614979,2.39406,1926.7,1926.6,1.03807]
[1742089615185,1.03809,1926.6,1926.5,1.03809]
[1742089615479,1.03804,1926.7,1926.6,1.03807]
[1742089617070,2.39394,1926.7,1926.5,1.03808]
[1742089617278,1.03807,1926.6,1926.5,1.03808]
[1742089617585,1.0381,1926.6,1926.5,1.0381]
[1742089618676,1.7039,1926.6,1926.5,1.0381]
[1742089620082,1.03813,1926.5,1926.4,2.40603]
[1742089620279,2.45193,1926.5,1926.4,2.40603]
[1742089620677,2.45193,1926.5,1926.4,1.03813]
[1742089621179,3.11423,1926.5,1926.4,1.03818]
[1742089621385,2.0761,1926.5,1926.4,1.03818]
[1742089621979,3.11423,1926.5,1926.4,1.03818]
[1742089622287,2.0761,1926.5,1926.2,1.3488]
[1742089622488,2.38863,1926.4,1926.3,1.03823]
[1742089623489,1.3504,1926.4,1926.3,1.03823]
[1742089624188,1.3504,1926.4,1926.3,2.43993]
[1742089624481,0.6623,1926.5,1926.4,1.03818]
[1742089624787,1.3691,1926.5,1926.4,2.40318]
[1742089624989,3.63420277,1926.7,1926.4,1.365]
[1742089625183,4.05344435,1926.7,1926.6,1.03807]
[1742089625384,4.02811842,1926.7,1926.6,1.03807]
[1742089625689,1.03802,1926.7,1926.6,2.40303]
[1742089625887,1.3691,1926.7,1926.6,2.40303]
[1742089626989,1.3428,1926.8,1926.7,1.03802]
[1742089627186,0.6717,1926.8,1926.7,2.40302]
[1742089627389,1.70966,1926.8,1926.7,2.40302]
[1742089627590,1.9942,1926.8,1926.7,2.40302]
[1742089629088,6.37310426,1926.9,1926.8,1.03796]
[1742089629290,6.74563435,1926.9,1926.8,3.82046]
[1742089629489,7.69560426,1926.9,1926.8,3.82046]
[1742089629687,6.65765426,1926.9,1926.8,3.82046]
[1742089630484,0.72949788,1927.0,1926.9,1.03791]
[1742089630688,2.15849788,1927.0,1926.9,2.42271]
[1742089630880,3.19635788,1927.0,1926.9,1.3848]
[1742089631086,3.19635788,1927.0,1926.9,2.42271]
[1742089631881,2.15849788,1927.0,1926.9,2.42271]
[1742089632282,1.43679788,1927.0,1926.9,2.42271]
[1742089632693,2.12499788,1927.0,1926.9,2.42271]
[1742089632991,3.16285788,1927.0,1926.9,1.3848]
[1742089633185,2.12499788,1927.0,1926.9,2.42271]
[1742089633689,3.16285788,1927.0,1926.9,1.3848]
[1742089634094,1.03796,1926.8,1926.5,3.2078]
[1742089634285,1.03796,1926.8,1926.7,3.2078]
[1742089634794,1.70906,1926.8,1926.5,4.5871]
[1742089634984,0.6711,1926.8,1926.7,1.03802]
[1742089635385,3.08546,1926.8,1926.7,1.03802]
[1742089635788,3.08546,1926.8,1926.6,2.37644]
[1742089635993,1.3764,1926.7,1926.6,2.37644]
[1742089636294,2.41442,1926.7,1926.6,1.3384]
[1742089636485,3.13762,1926.7,1926.6,1.3384]
[1742089639894,4.11266852,1926.7,1926.6,1.3384]
[1742089640400,3.13762,1926.7,1926.6,1.3384]
[1742089642892,3.13762,1926.7,1926.3,3.2078]
[1742089642893,1.03818,1926.4,1926.3,3.2078]
[1742089643094,1.03818,1926.4,1926.3,4.24603]
[1742089643396,1.3558,1926.6,1926.3,4.24601]
[1742089644097,1.03818,1926.4,1926.3,4.24601]
[1742089644299,1.03818,1926.4,1926.3,3.2078]
[1742089644895,1.71368,1926.4,1926.3,3.2078]
[1742089645793,3.13998,1926.4,1926.3,1.3592]
[1742089646394,1.03829,1926.2,1926.1,3.2078]
[1742089647703,1.03829,1926.2,1926.1,4.567]
[1742089649302,1.76119,1926.2,1926.1,4.567]
[1742089651303,0.7229,1926.2,1926.1,5.60534]
[1742089651503,1.76119,1926.2,1926.1,4.567]
[1742089652009,1.03829,1926.2,1926.1,4.567]
[1742089652400,3.25761481,1926.4,1926.1,4.567]
[1742089652604,0.97504852,1926.4,1926.2,2.0083]
[1742089652908,2.44611,1926.4,1926.3,1.3118]
[1742089653206,1.98622162,1926.5,1926.3,1.9854]
[1742089653408,3.409,1926.6,1926.5,1.03813]
[1742089653705,2.44596,1926.7,1926.5,1.03813]
[1742089653907,3.39396533,1926.7,1926.6,1.3118]
[1742089654207,2.44596,1926.7,1926.6,1.9854]
[1742089654504,1.4079,1926.7,1926.6,3.69487]
[1742089654805,2.60250788,1927.0,1926.7,1.03802]
[1742089654806,1.03791,1926.9,1926.7,1.03802]